Cogmind - Beta 10.2 @@@ ROGUE MODE // 2022.02.11 @ 15:19:25 Player: lumberblack Result: Self-destructed Performance ------------- Evolutions (5) 2500 Regions Visited (6) 1200 Robots Destroyed (4) 20 Value Destroyed (41) 41 Prototype IDs (1) 20 Alien Tech Used (0) 0 Bonus (200) 200 TOTAL SCORE: 3981 Bonus ------- Pacifist 200 Cogmind --------- Core Integrity 1000/1000 Matter 216/300 Energy 99/100 System Corruption 0% Temperature Cool (0) Movement Core (50) Location -5/Factory Parts ------- > --- POWER (1) -------- (None) > --- PROPULSION (8) --- Advanced Treads Improved Medium Treads Armored Medium Treads > --- UTILITY (6) ------ Enhanced Optical Array Improved Transmission Jammer > --- WEAPON (2) ------- (None) > --- INVENTORY (4) ---- Reactive Plating Reactive Plating Peak State ------------ > --- POWER ------------ (None) > --- PROPULSION ------- Advanced Treads Improved Medium Treads Armored Medium Treads > --- UTILITY ---------- Enhanced Optical Array Improved Transmission Jammer > --- WEAPON ----------- (None) > --- INVENTORY -------- Reactive Plating Reactive Plating [Rating: 23] Favorites ----------- Power None Propulsion Aerolev Unit Treads Improved Medium Treads Hover Unit Aerolev Unit Flight Unit Xenon Bombardment Thruster Utility Improved Sensor Array Device Improved Sensor Array Processor Enhanced Optical Array Hackware Hacking Suite Protection Reactive Plating Weapon None Build | -11 -10 -9 -8 -7 -6 -5 ------- Run | Scr Mat Mat Mat Fac Fac Fac Slots Evolved 10 | . . 2 2 2 2 2 Power . | . . . . . . . Propulsion 6 | . . 2 . 2 2 . Utility 4 | . . . 2 . . 2 Weapon . | . . . . . . . Parts Attached 21 | . . 1 2 8 7 3 Power . | . . . . . . . Engine . | . . . . . . . Core . | . . . . . . . Reactor . | . . . . . . . Propulsion 9 | . . 1 . 2 3 3 Treads 6 | . . 1 . . 2 3 Leg . | . . . . . . . Wheel . | . . . . . . . Hover 1 | . . . . 1 . . Flight 2 | . . . . 1 1 . Utility 12 | . . . 2 6 4 . Device 6 | . . . 1 3 2 . Storage . | . . . . . . . Processor 2 | . . . 1 . 1 . Hackware 2 | . . . . 2 . . Protection 2 | . . . . 1 1 . Artifact . | . . . . . . . Weapon . | . . . . . . . Energy Gun . | . . . . . . . Energy Cannon . | . . . . . . . Ballistic Gun . | . . . . . . . Ballistic Cannon . | . . . . . . . Launcher . | . . . . . . . Special Weapon . | . . . . . . . Impact Weapon . | . . . . . . . Slashing Weapon . | . . . . . . . Piercing Weapon . | . . . . . . . Special Melee Weapon . | . . . . . . . Unidentified Prototypes 1 | . . . . 1 . . Parts Lost 8 | . . 1 1 4 2 . Power . | . . . . . . . Propulsion 4 | . . 1 . 2 1 . Utility 4 | . . . 1 2 1 . Weapon . | . . . . . . . Highest Loss Streak 4 | . . 1 1 4 1 . Average Slot Usage (%) 17 | . . 2 7 28 20 25 Treads 2 | . . 2 . . 4 13 Hover 1 | . . . . 4 . . Device 5 | . . . 2 13 3 5 Processor 2 | . . . 4 . 5 5 Hackware 2 | . . . . 6 2 . Protection 1 | . . . . 1 2 . Naked Turns 196 | . 53 108 33 2 . . Heaviest Build 11 | . . . 1 11 5 1 Greatest Support 11 | 3 3 3 3 11 7 3 Greatest Overweight (x) . | . . . . . . . Average Overweight (x) . | . . . . . . . Largest Inventory Capacity 4 | . 4 4 4 4 4 4 Average Capacity 4 | . 4 4 4 4 4 4 Most Carried 4 | . 4 4 4 4 4 4 Average Carried 3 | . 4 3 4 3 3 2 Final Capacity 4 | 4 4 4 4 4 4 4 Final Carried 4 | 4 4 4 4 4 4 2 Class Distribution -------------------- 93% | Mutant 6% | Hacker-Mutant Dominant Class ---------------- Mutant | -10/Materials Mutant | -9/Materials Mutant | -8/Materials Mutant | -7/Factory Mutant | -6/Factory Mutant | -5/Factory Resources | -11 -10 -9 -8 -7 -6 -5 ----------- Run | Scr Mat Mat Mat Fac Fac Fac Matter Collected 280 | 200 . . . 30 50 . Remotely . | . . . . . . . Salvage Created 130 | . . 50 . 30 50 . Parts 12 | . . 3 . 3 6 . Haulers Intercepted . | . . . . . . . Recyclers Shooed 2 | . . 1 . . 1 . Parts Field Recycled . | . . . . . . . Retrieved Matter . | . . . . . . . Parts Self-Destructed . | . . . . . . . Prevented . | . . . . . . . Kills | -11 -10 -9 -8 -7 -6 -5 ------- Run | Scr Mat Mat Mat Fac Fac Fac Combat Hostiles Destroyed 1 | . . 1 . . . . Melee 1 | . . 1 . . . . Classes Destroyed 3 | . . 1 . 1 1 . Worker 2 | . . . . 1 1 . Builder 1 | . . . . . 1 . Grunt 1 | . . 1 . . . . Best Kill Streak 2 | . . 1 . 1 2 . Combat Bots Only 1 | . . 1 . . . . Max Kills in Single Turn 1 | . . 1 . 1 1 . Gunslinging . | . . . . . . . Exploded . | . . . . . . . Melee 1 | . . 1 . . . . Uniques/NPCs Destroyed . | . . . . . . . Combat | -11 -10 -9 -8 -7 -6 -5 -------- Run | Scr Mat Mat Mat Fac Fac Fac Damage Taken 2321 | . 42 537 411 683 635 13 Core 1653 | . 42 388 377 453 393 . Absorbed by Shields . | . . . . . . . Core Remaining (%) 50 | 100 83 3 31 35 53 . Volleys Fired . | . . . . . . . Largest . | . . . . . . . Hottest . | . . . . . . . Shots Fired . | . . . . . . . Gun . | . . . . . . . Cannon . | . . . . . . . Launcher . | . . . . . . . Special . | . . . . . . . Kinetic . | . . . . . . . Thermal . | . . . . . . . Explosive . | . . . . . . . Electromagnetic . | . . . . . . . Robot Hit Streak . | . . . . . . . Robot Miss Streak . | . . . . . . . Penetration Max . | . . . . . . . Secondary Targets . | . . . . . . . Shots Hit Robots . | . . . . . . . Core Hits 16 | . . 9 . 1 6 . Critical Hits . | . . . . . . . Critical Kills . | . . . . . . . Critical Parts Destroyed . | . . . . . . . Melee Attacks . | . . . . . . . Impact . | . . . . . . . Slashing . | . . . . . . . Piercing . | . . . . . . . Sneak Attacks . | . . . . . . . Combat Hostiles . | . . . . . . . Follow-up Attacks . | . . . . . . . Damage Inflicted 151 | . . 75 . 28 48 . Guns . | . . . . . . . Cannons . | . . . . . . . Explosions . | . . . . . . . Melee . | . . . . . . . Ramming 151 | . . 75 . 28 48 . Kinetic . | . . . . . . . Thermal . | . . . . . . . Explosive . | . . . . . . . Electromagnetic . | . . . . . . . Impact . | . . . . . . . Slashing . | . . . . . . . Piercing . | . . . . . . . Highest Corruption 6 | . . . . 1 6 . Average Corruption 3 | . . . . 1 5 . Corruption Purged . | . . . . . . . Effects 4 | . . . . 1 3 . Message Errors 2 | . . . . . 2 . Matter Fused 1 | . . . . . 1 . Data Loss (minor) 1 | . . . . 1 . . Overload Shots . | . . . . . . . Overflow Damage . | . . . . . . . Projectiles . | . . . . . . . Explosions . | . . . . . . . Melee . | . . . . . . . Knockbacks . | . . . . . . . Impact . | . . . . . . . Kinetic . | . . . . . . . Secondary . | . . . . . . . Self-Inflicted Damage 68 | . . 31 . 14 23 . Shots . | . . . . . . . Rammed 30 | . . 22 . 1 7 . Targets Rammed 30 | . . 22 . 1 7 . Kicked . | . . . . . . . Crushed . | . . . . . . . Highest Temperature . | . . . . . . . Average Temperature . | . . . . . . . Received Heat Transfer 705 | . 24 198 108 159 216 . Siege Activations . | . . . . . . . Robots Corrupted . | . . . . . . . Combat Hostiles . | . . . . . . . Parts Fried . | . . . . . . . Impact Corruptions . | . . . . . . . Robots Melted . | . . . . . . . Combat Hostiles . | . . . . . . . Parts Melted . | . . . . . . . Heat Transferred . | . . . . . . . Parts Sabotaged . | . . . . . . . Parts Stolen . | . . . . . . . Parts Stripped . | . . . . . . . Power Chain Reactions . | . . . . . . . Missiles Intercepted . | . . . . . . . Alert | -11 -10 -9 -8 -7 -6 -5 ------- Run | Scr Mat Mat Mat Fac Fac Fac Peak Influence 272 | . 36 203 255 150 272 133 Initial 133 | . . 14 85 13 17 133 Average 78 | . 11 65 124 38 113 133 Maximum Alert Level 1 | . . 1 1 . 1 . Low Security (%) 90 | . 100 97 76 100 76 100 Level 1 9 | . . 2 23 . 23 . Level 2 . | . . . . . . . Level 3 . | . . . . . . . Level 4 . | . . . . . . . Level 5 . | . . . . . . . High Security . | . . . . . . . Max Security . | . . . . . . . Squads Dispatched 11 | . 1 3 1 2 4 . Investigation 7 | . 1 2 1 1 2 . Extermination . | . . . . . . . Reinforcement 4 | . . 1 . 1 2 . Assault . | . . . . . . . Garrison . | . . . . . . . Intercept . | . . . . . . . Construction Impeded . | . . . . . . . Haulers Reinforced . | . . . . . . . Stealth | -11 -10 -9 -8 -7 -6 -5 --------- Run | Scr Mat Mat Mat Fac Fac Fac Distress Signals 4 | . 1 1 1 . 1 . Communications Jammed . | . . . . . . . Distress Signals . | . . . . . . . Times Spotted 80 | . 2 17 18 16 25 2 Peak Tracking Total 15 | . 2 10 13 10 15 5 Tactical Retreats 12 | . . 3 2 3 4 . Traps | -11 -10 -9 -8 -7 -6 -5 ------- Run | Scr Mat Mat Mat Fac Fac Fac Traps Triggered 3 | . . 1 1 . 1 . Indirectly . | . . . . . . . Trap Hack Attempts . | . . . . . . . Triggered . | . . . . . . . Disarmed . | . . . . . . . Reprogrammed . | . . . . . . . Reused . | . . . . . . . Traps Extracted . | . . . . . . . Installed . | . . . . . . . Triggered . | . . . . . . . Machines | -11 -10 -9 -8 -7 -6 -5 ---------- Run | Scr Mat Mat Mat Fac Fac Fac Machines Disabled . | . . . . . . . Max in Single Turn . | . . . . . . . Machines Sabotaged . | . . . . . . . Garrisons Compromised . | . . . . . . . Overloaded Fab Kills . | . . . . . . . Fab Network Shutdowns . | . . . . . . . Hacking | -11 -10 -9 -8 -7 -6 -5 --------- Run | Scr Mat Mat Mat Fac Fac Fac Machines Accessed 17 | . 2 2 2 6 4 1 Terminals 17 | . 2 2 2 6 4 1 Fabricators . | . . . . . . . Repair Stations . | . . . . . . . Recycling Units . | . . . . . . . Scanalyzers . | . . . . . . . Garrison Access . | . . . . . . . Total Hacks 58 | . 8 4 8 19 18 1 Successful 25 | . 2 1 5 8 9 . Failed 33 | . 6 3 3 11 9 1 Catastrophic 10 | . 3 1 1 1 3 1 Database Lockouts . | . . . . . . . Manual 44 | . 8 4 8 14 10 . Terminals 58 | . 8 4 8 19 18 1 Fabricators . | . . . . . . . Repair Stations . | . . . . . . . Recycling Units . | . . . . . . . Scanalyzers . | . . . . . . . Garrison Access . | . . . . . . . Terminal Hacks 19 | . 1 . 4 6 8 . Level Access Points 3 | . . . 1 1 1 . Branch Access Points 2 | . . . . 1 1 . Terminal Index 4 | . 1 . 1 1 1 . Alert Level 1 | . . . . . 1 . Unreport Threat 5 | . . . 2 1 2 . Locate Traps 1 | . . . . . 1 . Reprogram Traps 1 | . . . . 1 . . Zone Layout 2 | . . . . 1 1 . Fabricator Hacks . | . . . . . . . Repair Station Hacks . | . . . . . . . Recycling Unit Hacks . | . . . . . . . Scanalyzer . | . . . . . . . Garrison Access Hacks . | . . . . . . . Unauthorized Hacks 6 | . 1 1 1 2 1 . Terminals 6 | . 1 1 1 2 1 . Track 1 | . . . . . 1 . Botnet 3 | . 1 1 1 . . . Disrupt 2 | . . . . 2 . . Fabricators . | . . . . . . . Repair Stations . | . . . . . . . Recycling Units . | . . . . . . . Scanalyzers . | . . . . . . . Garrison Access . | . . . . . . . Data Cores Recovered . | . . . . . . . Used . | . . . . . . . Hacking Detections 17 | . 2 2 2 6 4 1 Full Trace Events 7 | . 2 1 1 1 2 . Feedback Events 3 | . . . . 2 1 . Corruption 2 | . . . . 1 1 . Hackware Fried 1 | . . . . 1 . . Feedback Blocked . | . . . . . . . Robot Schematics Acquired . | . . . . . . . Robots Built . | . . . . . . . Matter . | . . . . . . . Time . | . . . . . . . Total Robot Build Rating . | . . . . . . . Part Schematics Acquired . | . . . . . . . Parts Built . | . . . . . . . Matter . | . . . . . . . Time . | . . . . . . . Total Part Build Rating . | . . . . . . . Parts Repaired . | . . . . . . . Time . | . . . . . . . Parts Recycled . | . . . . . . . Recycled Matter . | . . . . . . . Retrieved Matter . | . . . . . . . Retrieved Components . | . . . . . . . Parts Scanalyzed . | . . . . . . . Part Schematics Acquired . | . . . . . . . Parts Damaged . | . . . . . . . Bothacking | -11 -10 -9 -8 -7 -6 -5 ------------ Run | Scr Mat Mat Mat Fac Fac Fac Used RIF Installer . | . . . . . . . Robots Hacked . | . . . . . . . Non-combat . | . . . . . . . Combat . | . . . . . . . Robot Hacks Applied . | . . . . . . . Relay Couplers Released . | . . . . . . . Robots Rewired . | . . . . . . . Allies Hacked . | . . . . . . . Hacks Repelled . | . . . . . . . Allies | -11 -10 -9 -8 -7 -6 -5 -------- Run | Scr Mat Mat Mat Fac Fac Fac Total Allies . | . . . . . . . Largest Group . | . . . . . . . Highest-Rated Group . | . . . . . . . Highest-Rated Ally . | . . . . . . . Total Orders . | . . . . . . . Ally Attacks . | . . . . . . . Total Damage . | . . . . . . . Kills . | . . . . . . . Allies Corrupted . | . . . . . . . Allies Melted . | . . . . . . . Intel | -11 -10 -9 -8 -7 -6 -5 ------- Run | Scr Mat Mat Mat Fac Fac Fac Robot Analysis Total . | . . . . . . . Derelict Logs Recovered . | . . . . . . . Drone Launches . | . . . . . . . Drone Recoveries . | . . . . . . . Exploration | -11 -10 -9 -8 -7 -6 -5 ------------- Run | Scr Mat Mat Mat Fac Fac Fac Turns Passed 829 | . 53 149 97 250 234 46 Spaces Moved 1533 | 1 105 250 188 443 462 84 Core 1067 | 1 105 250 188 146 293 84 Treads . | . . . . . . . Legs . | . . . . . . . Wheels . | . . . . . . . Hover 281 | . . . . 281 . . Flight 185 | . . . . 16 169 . Fastest Speed 40 | 50 50 50 50 40 40 50 Average Speed 48 | 50 50 50 50 49 46 50 Slowest Speed 50 | 50 50 50 50 50 50 50 Overloaded Moves . | . . . . . . . Propulsion Burnouts . | . . . . . . . Robots Hopped 2 | . . . . . 2 . Cave-ins Triggered . | . . . . . . . Exploration Rate (%) 21 | 1 34 31 34 21 25 6 Regions Visited 6 Branch Regions . Pre-discovered Areas . | . . . . . . . Known Exits Taken 3 | . . . 1 1 1 . Unknown Exits Taken 3 | 1 1 1 . . . . Scrap Searched . | . . . . . . . Spaces Dug . | . . . . . . . Terrain Destroyed . | . . . . . . . Melee . | . . . . . . . Projectile . | . . . . . . . AOE . | . . . . . . . Terrain Rammed . | . . . . . . . Walls Destroyed . | . . . . . . . Machines Disabled . | . . . . . . . Actions | -11 -10 -9 -8 -7 -6 -5 --------- Run | Scr Mat Mat Mat Fac Fac Fac Total 1603 | . 104 273 189 472 478 87 Wait 11 | . . . . 11 . . Move 1524 | . 104 249 187 442 458 84 Hop 1 | . . . . . 1 . Pick Up 5 | . . 1 . 4 . . Fast Attach 15 | . . . 2 7 5 1 Attach 6 | . . 1 . 1 2 2 Detach 2 | . . . . . 2 . Swap . | . . . . . . . Drop 8 | . . . . 6 2 . Fire . | . . . . . . . Melee . | . . . . . . . Ram 30 | . . 22 . 1 7 . Kick . | . . . . . . . Crush . | . . . . . . . Escape Stasis . | . . . . . . . Rewire 1 | . . . . . 1 . Trap . | . . . . . . . Miscellaneous . | . . . . . . . Route ------- -11/Scrapyard -10/Materials -9/Materials -8/Materials (discovered 3 exits: *Fac x3) -7/Factory (discovered 6 exits: *Fac x4 / Low x2) -6/Factory (discovered 8 exits: *Fac x4 / Low x2 / Ext x2) -5/Factory History --------- Turn | Location | Event 1 | -11/Scrapyard | Released all parts (6) 1 | -11/Scrapyard | Discovered new exit (range 0) 1 | -11/Scrapyard | Entered Materials 46 | -10/Materials | Discovered new exit (range 16) 54 | -10/Materials | Entered another Materials area 54 | -9/Materials | Evolved 2 slots: Propulsion x2 137 | -9/Materials | Core integrity fell below 50% 193 | -9/Materials | Core integrity fell below 20% 197 | -9/Materials | Discovered new exit (range 14) 203 | -9/Materials | Entered another Materials area 203 | -8/Materials | Evolved 2 slots: Utility x2 283 | -8/Materials | Identified exit to Factory 288 | -8/Materials | Core integrity fell below 50% 300 | -8/Materials | Entered Factory 300 | -7/Factory | Evolved 2 slots: Propulsion x2 328 | -7/Factory | Build established: Mutant 475 | -7/Factory | System Shield fried by hacking feedback 500 | -7/Factory | Identified exit to Lower Caves 513 | -7/Factory | Identified exit to Factory 538 | -7/Factory | Core integrity fell below 50% 547 | -7/Factory | Lost 4 parts (2n2u) 550 | -7/Factory | Entered another Factory area 550 | -6/Factory | Evolved 2 slots: Propulsion x2 658 | -6/Factory | Identified exit to Lower Caves 658 | -6/Factory | Identified exit to Extension 692 | -6/Factory | Identified exit to Factory 784 | -6/Factory | Entered another Factory area 784 | -5/Factory | Evolved 2 slots: Utility x2 830 | -5/Factory | Self-destructed Last Messages --------------- 00738_ K-01 Serf cleans the Fusion Modulator. 00754_ VIZTHK 8T:VY6ILKUF=,T9NMS%Q| 00754_ Triggered Proton Bomb Trap. 00754_ A bubble of electromagnetic force engulfs the area. 00754_ Repair Station disabled. 00754_ Door malfunctions. 00769_ Xenon Bombardment Thruster destroyed. 00769_ Dropped Imp. Sensor Array. 00770_ Dropped Imp. Light Armor Plating. 00774_ Slug penetrates G-50 Soldier. 00775_ Slug penetrates Wall. 00777_ O-16 Technician: "IFF HANDSHAKE FAILED. SECURING TERMINAL." 00781_ ALERT: Hostiles spotted, dispatching reinforcements to Terminal F010. PARAMETERS=UTILITY_2 LOCATION=FACTORY GOAL=ESCAPE 00797_ Acquired Arm. Medium Treads. 00823_ Connecting with Terminal... 00825_ K-01 Serf cleans the Subcomponent Replicator. Map ----- +----------------------------------------------------+ | | | | | | | | | | | | | | | | | | | | | | | ???????????????????##########????????????????????? | | ??????????????????? #?????????????????? | | ??????????????????? #?????????????????? | | ???????????????????? ??????????????????? | | ???????????????????? ??????????????????? | | ????????????????????? !! ???????????????????? | | ?????????# ?????????? !] ???????????????????? | | ?????????# ??????????? !s ????????????????????? | | ?????????+ ????????? """ ????????????????????? | | ?????????# ?????????? """?????????????????????? | | ?????????# ?????????? """?????????????????????? | | ?????????# ???????????s ??????????????????????? | | ?????????# ?????????? ??????????????????????? | | ?????????+ ????????###/####### #???????????? | | ?????????# ????????# @ #???????????? | | ????????## ####????# ######## #???????????? | | ????????# ###### #????????????????????? | | ????????# #????????????????????? | | ????????+ #????????????????????? | | ????????# """ #????????????????????? | | ????????# """ #????????????????????? | | ????????# """ #????????????????????? | | ????????# "" "" #????????????????????? | | ????????# !] "" "" #????????????????????? | | ????????# ! """ """ + ???????????????????? | | ????????# """ """ # ??????????????????? | | ????????# "" """ """ # ?????????????????? | | ????????# """ #?###????????????????? | | ????????# "T "" #????????????????????? | | ????????# """ **! "" #????????????????????? | | ????????+ "" **! """ #????????????????????? | | ????????# *! """ +????????????????????? | | ????????# """ #????????????????????? | | ????????##### #????????????????????? | | ????????????# "" "" #????????????????????? | | ????????#####+## "" "" #????????????????????? | | ????????# ! ## """ """ #????????????????????? | | ????????# !## """ """ #????????????????????? | | ????????# !! ## """ """? #????????????????????? | +----------------------------------------------------+ Best States ------------- Heat Dissipation 40 Energy Generation 5 Energy Capacity 100 Matter Stores 300 Matter Capacity 300 Sight Range 22 Robot Scan Range 13 Terrain Scan Density 210 Armor Coverage 150 Resistance: KI 20 Evasion (%) 62 Recoil Reduction 3 Offensive Hacking 10 Defensive Hacking 10 Item Schematics ----------------- None Robot Schematics ------------------ None Fabricated ------------ Nothing Alien Tech Used ----------------- None Achievements -------------- None Challenges ------------ None Game ------ Seed StorageInertialNullifier Manual? 0 Play Time 00:26:42 Cumulative 336.1 hours Start 2022.02.11 @ 14:52:15 End 2022.02.11 @ 15:19:25 Sessions 1 Manual Loads 0 Difficulty Rogue Special Mode None Game No. 283 Rogue 283 Adventurer 0 Explorer 0 Win Type - Total 6 Types 5/0/1/0/0/0/0/0/0 Lore% 55 Gallery% 78 Achievement% 62 Wizard Run 0 Options --------- ASCII 0 Keyboard 0 Movement Numpad Keybinds 0 Fullscreen 2 Font 18/TerminusBold Map View 76x50 Tactical HUD 1 Map Filters NONE Filters NONE Steam 1 RUN: 0202861e-b489-46a7-8df5-401b0f4bdf61